Workbook

Sheet Chart

Sheet Data
A1: Leap Cycle Jitter Evaluator
A2: by Dr. Irv Bromberg, University of Toronto, Canada
A3: http://individual.utoronto.ca/intervalmath/jitter/index.html | G3: Limits for Chart:
D4: ="Jitter vs. Mean Year" & IF(C9,IF(Avg<0," + "," - ")&ABS(Avg),"")&" (K="&Kvalue&")" -> Jitter vs. Mean Year (K=16) | G4: x | H4: y
A5: Years per Cycle: | B5: 33 | C5: years | D5: Jitter | E5: (days) | G5: =A14-1 -> 0 | H5: =JitterMax-Avg -> 0.484848
A6: Leaps Per Cycle: | B6: 8 | C6: leaps | D6: =MAX(E:E) -> 0.484848 | E6: maximum | F6: =reducefraction(JitterMax*YPC,YPC,FALSE,FALSE,FALSE) -> 16 / 33 | G6: 256 | H6: =H5 -> 0.484848
A7: Common Year: | B7: 365 | C7: days | D7: =MIN(E:E) -> -0.484848 | E7: minimum | F7: =reducefraction(JitterMin*YPC,YPC,FALSE,FALSE,FALSE) -> –16 / 33
A8: Days Per Leap: | B8: 1 | C8: days | D8: =D6-D7 -> 0.969696 | E8: range | F8: =reducefraction(JitterRange*YPC,YPC,FALSE,FALSE,TRUE) -> 32/33 | G8: =G5 -> 0 | H8: =JitterMin-Avg -> -0.484848
A9: Leap Year: | B9: =SUM(B7:B8) -> 366 | C9: FALSE | D9: =IF(C9,AVERAGE(D6:D7),0) -> 0.000000 | E9: average | G9: =G6 -> 256 | H9: =H8 -> -0.484848
A10: Mean Year >365d: | B10: =LPC/YPC -> 0.2424242424 | C10: days | D10: ="Jitter range = "&JitterRange&" = "&F8&" days" -> Jitter range = 0.969696 = 32/33 days
B11: =TEXT(Common,"#")&"+"&TEXT(LPC,"#")&"/"&TEXT(YPC,"#")&" days = 365d 5h 49m 5+5/11s" -> 365+8/33 days = 365d 5h 49m 5+5/11s | F11: =LPC/YPC -> 05:49:05.455 | G11: K = | H11: 16
A13: Year | B13: Leap? | C13: New Year Moment | D13: Elapsed | E13: Difference | F13: Offset | G13: Dee Leap | H13: Same?
A14: 1 | B14: =MOD(8*A14+Kvalue,33)<8 -> FALSE | C14: 0 | D14: 0 | E14: =ROUND(C14-D14,6) -> 0 | F14: =E14-Avg -> 0 | G14: =IsDeeLeapYear(A14) -> FALSE | H14: =G14=B14 -> TRUE
A15: =A14+1 -> 2 | B15: FALSE | C15: =C14+365+MeanYear -> 365.2424242 | D15: =D14+365+IF(B14,1,0) -> 365 | E15: =ROUND(C15-D15,6) -> 0.242424 | F15: 0.242424 | G15: =IsDeeLeapYear(A15) -> FALSE | H15: =G15=B15 -> TRUE
A16: =A15+1 -> 3 | B16: TRUE | C16: =C15+365+MeanYear -> 730.4848485 | D16: =D15+365+IF(B15,1,0) -> 730 | E16: 0.484848 | F16: 0.484848 | G16: FALSE | H16: FALSE
A17: 4 | B17: FALSE | C17: =C16+365+MeanYear -> 1095.727273 | D17: 1096 | E17: -0.272727 | F17: -0.272727 | G17: TRUE | H17: FALSE
A18: 5 | B18: FALSE | C18: 1460.969697 | D18: 1461 | E18: -0.030303 | F18: -0.030303 | G18: FALSE | H18: TRUE
A19: 6 | B19: FALSE | C19: 1826.212121 | D19: 1826 | E19: 0.212121 | F19: 0.212121 | G19: FALSE | H19: TRUE
A20: 7 | B20: TRUE | C20: 2191.454545 | D20: 2191 | E20: 0.454545 | F20: 0.454545 | G20: FALSE | H20: FALSE
A21: 8 | B21: FALSE | C21: 2556.69697 | D21: 2557 | E21: -0.30303 | F21: -0.30303 | G21: TRUE | H21: FALSE
A22: 9 | B22: FALSE | C22: 2921.939394 | D22: 2922 | E22: -0.060606 | F22: -0.060606 | G22: FALSE | H22: TRUE
A23: 10 | B23: FALSE | C23: 3287.181818 | D23: 3287 | E23: 0.181818 | F23: 0.181818 | G23: FALSE | H23: TRUE
A24: 11 | B24: TRUE | C24: 3652.424242 | D24: 3652 | E24: 0.424242 | F24: 0.424242 | G24: FALSE | H24: FALSE
A25: 12 | B25: FALSE | C25: 4017.666667 | D25: 4018 | E25: -0.333333 | F25: -0.333333 | G25: TRUE | H25: FALSE
A26: 13 | B26: FALSE | C26: 4382.909091 | D26: 4383 | E26: -0.090909 | F26: -0.090909 | G26: FALSE | H26: TRUE
A27: 14 | B27: FALSE | C27: 4748.151515 | D27: 4748 | E27: 0.151515 | F27: 0.151515 | G27: FALSE | H27: TRUE
A28: 15 | B28: TRUE | C28: 5113.393939 | D28: 5113 | E28: 0.393939 | F28: 0.393939 | G28: FALSE | H28: FALSE
A29: 16 | B29: FALSE | C29: 5478.636364 | D29: 5479 | E29: -0.363636 | F29: -0.363636 | G29: TRUE | H29: FALSE
A30: 17 | B30: FALSE | C30: 5843.878788 | D30: 5844 | E30: -0.121212 | F30: -0.121212 | G30: FALSE | H30: TRUE
A31: 18 | B31: FALSE | C31: 6209.121212 | D31: 6209 | E31: 0.121212 | F31: 0.121212 | G31: FALSE | H31: TRUE
A32: 19 | B32: TRUE | C32: 6574.363636 | D32: 6574 | E32: 0.363636 | F32: 0.363636 | G32: FALSE | H32: FALSE
A33: 20 | B33: FALSE | C33: 6939.606061 | D33: 6940 | E33: -0.393939 | F33: -0.393939 | G33: TRUE | H33: FALSE
A34: 21 | B34: FALSE | C34: 7304.848485 | D34: 7305 | E34: -0.151515 | F34: -0.151515 | G34: FALSE | H34: TRUE
A35: 22 | B35: FALSE | C35: 7670.090909 | D35: 7670 | E35: 0.090909 | F35: 0.090909 | G35: FALSE | H35: TRUE
A36: 23 | B36: TRUE | C36: 8035.333333 | D36: 8035 | E36: 0.333333 | F36: 0.333333 | G36: FALSE | H36: FALSE
A37: 24 | B37: FALSE | C37: 8400.575758 | D37: 8401 | E37: -0.424242 | F37: -0.424242 | G37: TRUE | H37: FALSE
A38: 25 | B38: FALSE | C38: 8765.818182 | D38: 8766 | E38: -0.181818 | F38: -0.181818 | G38: FALSE | H38: TRUE
A39: 26 | B39: FALSE | C39: 9131.060606 | D39: 9131 | E39: 0.060606 | F39: 0.060606 | G39: FALSE | H39: TRUE
A40: 27 | B40: TRUE | C40: 9496.30303 | D40: 9496 | E40: 0.30303 | F40: 0.30303 | G40: FALSE | H40: FALSE
A41: =A40+1 -> 28 | B41: FALSE | C41: =C40+365+MeanYear -> 9861.545455 | D41: =D40+365+IF(B40,1,0) -> 9862 | E41: =ROUND(C41-D41,6) -> -0.454545 | F41: =E41-Avg -> -0.454545 | G41: TRUE | H41: FALSE
A42: =A41+1 -> 29 | B42: FALSE | C42: 10226.78788 | D42: =D41+365+IF(B41,1,0) -> 10227 | E42: =ROUND(C42-D42,6) -> -0.212121 | F42: -0.212121 | G42: FALSE | H42: TRUE
A43: 30 | B43: FALSE | C43: 10592.0303 | D43: 10592 | E43: 0.030303 | F43: 0.030303 | G43: FALSE | H43: TRUE
A44: 31 | B44: TRUE | C44: 10957.27273 | D44: 10957 | E44: 0.272727 | F44: 0.272727 | G44: FALSE | H44: FALSE
A45: 32 | B45: FALSE | C45: 11322.51515 | D45: 11323 | E45: -0.484848 | F45: -0.484848 | G45: TRUE | H45: FALSE
A46: 33 | B46: =MOD(8*A46+Kvalue,33)<8 -> FALSE | C46: 11687.75758 | D46: 11688 | E46: -0.242424 | F46: -0.242424 | G46: FALSE | H46: TRUE
A47: 34 | B47: FALSE | C47: 12053 | D47: 12053 | E47: 0 | F47: 0 | G47: FALSE | H47: TRUE
A48: 35 | B48: FALSE | C48: 12418.24242 | D48: 12418 | E48: 0.242424 | F48: 0.242424 | G48: FALSE | H48: TRUE
A49: 36 | B49: TRUE | C49: 12783.48485 | D49: 12783 | E49: 0.484848 | F49: 0.484848 | G49: FALSE | H49: FALSE
A50: 37 | B50: FALSE | C50: 13148.72727 | D50: 13149 | E50: -0.272727 | F50: -0.272727 | G50: TRUE | H50: FALSE
A51: 38 | B51: FALSE | C51: 13513.9697 | D51: 13514 | E51: -0.030303 | F51: -0.030303 | G51: FALSE | H51: TRUE
A52: 39 | B52: FALSE | C52: 13879.21212 | D52: 13879 | E52: 0.212121 | F52: 0.212121 | G52: FALSE | H52: TRUE
A53: 40 | B53: TRUE | C53: 14244.45455 | D53: 14244 | E53: 0.454545 | F53: 0.454545 | G53: FALSE | H53: FALSE
A54: 41 | B54: FALSE | C54: 14609.69697 | D54: 14610 | E54: -0.30303 | F54: -0.30303 | G54: TRUE | H54: FALSE
A55: 42 | B55: FALSE | C55: 14974.93939 | D55: 14975 | E55: -0.060606 | F55: -0.060606 | G55: FALSE | H55: TRUE
A56: 43 | B56: FALSE | C56: 15340.18182 | D56: 15340 | E56: 0.181818 | F56: 0.181818 | G56: FALSE | H56: TRUE
A57: 44 | B57: TRUE | C57: 15705.42424 | D57: 15705 | E57: 0.424242 | F57: 0.424242 | G57: FALSE | H57: FALSE
A58: 45 | B58: FALSE | C58: 16070.66667 | D58: 16071 | E58: -0.333333 | F58: -0.333333 | G58: TRUE | H58: FALSE
A59: 46 | B59: FALSE | C59: 16435.90909 | D59: 16436 | E59: -0.090909 | F59: -0.090909 | G59: FALSE | H59: TRUE
A60: 47 | B60: FALSE | C60: 16801.15152 | D60: 16801 | E60: 0.151515 | F60: 0.151515 | G60: FALSE | H60: TRUE
A61: 48 | B61: TRUE | C61: 17166.39394 | D61: 17166 | E61: 0.393939 | F61: 0.393939 | G61: FALSE | H61: FALSE
A62: 49 | B62: FALSE | C62: 17531.63636 | D62: 17532 | E62: -0.363636 | F62: -0.363636 | G62: TRUE | H62: FALSE
A63: 50 | B63: FALSE | C63: 17896.87879 | D63: 17897 | E63: -0.121212 | F63: -0.121212 | G63: FALSE | H63: TRUE
A64: 51 | B64: FALSE | C64: 18262.12121 | D64: 18262 | E64: 0.121212 | F64: 0.121212 | G64: FALSE | H64: TRUE
A65: 52 | B65: TRUE | C65: 18627.36364 | D65: 18627 | E65: 0.363636 | F65: 0.363636 | G65: FALSE | H65: FALSE
A66: 53 | B66: FALSE | C66: 18992.60606 | D66: 18993 | E66: -0.393939 | F66: -0.393939 | G66: TRUE | H66: FALSE
A67: 54 | B67: FALSE | C67: 19357.84848 | D67: 19358 | E67: -0.151515 | F67: -0.151515 | G67: FALSE | H67: TRUE
A68: 55 | B68: FALSE | C68: 19723.09091 | D68: 19723 | E68: 0.090909 | F68: 0.090909 | G68: FALSE | H68: TRUE
A69: 56 | B69: TRUE | C69: 20088.33333 | D69: 20088 | E69: 0.333333 | F69: 0.333333 | G69: FALSE | H69: FALSE
A70: 57 | B70: FALSE | C70: 20453.57576 | D70: 20454 | E70: -0.424242 | F70: -0.424242 | G70: TRUE | H70: FALSE
A71: 58 | B71: FALSE | C71: 20818.81818 | D71: 20819 | E71: -0.181818 | F71: -0.181818 | G71: FALSE | H71: TRUE
A72: 59 | B72: FALSE | C72: 21184.06061 | D72: 21184 | E72: 0.060606 | F72: 0.060606 | G72: FALSE | H72: TRUE
A73: 60 | B73: TRUE | C73: 21549.30303 | D73: 21549 | E73: 0.30303 | F73: 0.30303 | G73: FALSE | H73: FALSE
A74: 61 | B74: FALSE | C74: 21914.54545 | D74: 21915 | E74: -0.454545 | F74: -0.454545 | G74: TRUE | H74: FALSE
A75: 62 | B75: FALSE | C75: 22279.78788 | D75: 22280 | E75: -0.212121 | F75: -0.212121 | G75: FALSE | H75: TRUE
A76: 63 | B76: FALSE | C76: 22645.0303 | D76: 22645 | E76: 0.030303 | F76: 0.030303 | G76: FALSE | H76: TRUE
A77: 64 | B77: TRUE | C77: 23010.27273 | D77: 23010 | E77: 0.272727 | F77: 0.272727 | G77: FALSE | H77: FALSE
A78: 65 | B78: =MOD(8*A78+Kvalue,33)<8 -> FALSE | C78: 23375.51515 | D78: 23376 | E78: -0.484848 | F78: -0.484848 | G78: TRUE | H78: FALSE
A79: =A78+1 -> 66 | B79: FALSE | C79: 23740.75758 | D79: =D78+365+IF(B78,1,0) -> 23741 | E79: =ROUND(C79-D79,6) -> -0.242424 | F79: -0.242424 | G79: =IsDeeLeapYear(A79) -> FALSE | H79: =G79=B79 -> TRUE
A80: =A79+1 -> 67 | B80: FALSE | C80: 24106 | D80: =D79+365+IF(B79,1,0) -> 24106 | E80: =ROUND(C80-D80,6) -> 0 | F80: 0 | G80: FALSE | H80: TRUE
